bitfinex/quotes_SOLUSD_20240727
["timestamp","ask_amount","ask_price","bid_price","bid_amount"]
[1722123701865,6.0388,185.44,185.36,65.34]
[1722123703176,6.0388,185.44,185.36,65.84235546]
[1722123703376,16.3742,185.47,185.38,25.47]
[1722123703580,16.3742,185.47,185.39,65.34]
[1722123704691,16.3742,185.47,185.39,65.84211507]
[1722123705356,16.3742,185.47,185.4,0.50209817]
[1722123705563,16.3742,185.47,185.41,0.17]
[1722123705782,16.3742,185.47,185.39,65.34]
[1722123707395,1.34804636,185.46,185.39,65.34]
[1722123708461,16.3742,185.47,185.39,65.34]
[1722123711881,16.3742,185.47,185.4,0.50170351]
[1722123712187,16.3742,185.47,185.41,25.81]
[1722123712381,16.3742,185.47,185.42,65.34]
[1722123717678,6.0388,185.49,185.42,65.34]
[1722123717886,6.0388,185.49,185.42,65.84129351]
[1722123720296,6.0388,185.49,185.42,65.34]
[1722123721379,1.34788973,185.48,185.42,20.17]
[1722123721696,1.34788973,185.48,185.42,0.17]
[1722123723588,7.38678539,185.49,185.42,0.17]
[1722123724988,1.34798397,185.48,185.42,0.17]
[1722123726501,1.34798397,185.48,185.39,20.0]
[1722123726704,1.34798397,185.48,185.4,0.17]
[1722123727108,1.34798397,185.48,185.39,20.0]
[1722123728384,1.34798397,185.48,185.4,0.17]
[1722123734497,6.0388,185.49,185.4,0.17]
[1722123734907,1.34813062,185.48,185.4,0.17]
[1722123735802,6.0388,185.49,185.4,0.17]
[1722123737239,1.34813047,185.48,185.4,0.17]
[1722123738206,1.34813047,185.48,185.39,20.0]
[1722123738407,1.34813047,185.48,185.36,25.47]
[1722123738718,1.34813047,185.48,185.37,45.34]
[1722123740121,15.9371,185.47,185.38,20.0]
[1722123740323,5.66211969,185.46,185.34,5.58438894]
[1722123740531,1.3485421,185.45,185.34,5.58438894]
[1722123741814,1.3485421,185.45,185.35,20.0]
[1722123742399,1.3485421,185.45,185.34,20.0]
[1722123742817,46.3485421,185.45,185.34,20.0]
[1722123742998,46.3485421,185.45,185.32,20.0]
[1722123743513,1.3485421,185.45,185.32,20.0]
[1722123743918,1.34855273,185.44,185.33,26.31321229]
[1722123744216,1.34834813,185.46,185.34,20.0]
[1722123744418,1.34839401,185.45,185.35,0.34]
[1722123744924,1.34839401,185.45,185.35,45.34]
[1722123745226,1.34839401,185.45,185.36,20.0]
[1722123746101,15.9371,185.47,185.36,20.0]
[1722123746301,15.9371,185.47,185.37,45.0]
[1722123746517,1.34832125,185.46,185.37,45.0]
[1722123746725,1.34832423,185.45,185.37,45.0]
[1722123746919,1.34832423,185.45,185.36,20.0]
[1722123747233,1.34832423,185.45,185.35,0.34]
[1722123747404,1.34832423,185.45,185.35,45.34]
[1722123747606,1.34832423,185.45,185.36,20.0]
[1722123750706,1.34832423,185.45,185.36,19.5]
[1722123753217,15.9371,185.47,185.36,19.5]
[1722123753218,15.9371,185.47,185.36,45.47282595]
[1722123753523,15.9371,185.47,185.37,44.84]
[1722123753722,1.34815467,185.46,185.38,20.0]
[1722123753935,1.34815467,185.46,185.39,0.34]
[1722123754426,15.9371,185.47,185.39,0.34]
[1722123755705,15.9371,185.47,185.39,0.17]
[1722123755923,1.34821241,185.46,185.39,0.17]
[1722123756130,1.3482052,185.45,185.39,0.17]
[1722123757207,1.34820668,185.46,185.39,0.17]
[1722123757408,1.34820654,185.45,185.39,0.17]
[1722123758229,1.34820595,185.44,185.38,20.0]
[1722123758526,1.34820595,185.44,185.37,20.0]
[1722123758700,1.34820595,185.44,185.33,39.15999451]
[1722123758900,1.34820595,185.44,185.34,45.34]
[1722123759320,1.34839641,185.46,185.34,45.34]
[1722123759628,1.34839641,185.45,185.34,45.34]
[1722123760001,1.34839641,185.45,185.35,20.0]
[1722123760544,16.4392,185.43,185.35,20.0]
[1722123760825,1.34857158,185.42,185.34,20.17]
[1722123761399,1.34857158,185.42,185.34,0.17]
[1722123761603,1.34857158,185.42,185.33,45.34]
[1722123761801,1.34857158,185.42,185.34,20.0]
[1722123767432,1.34857158,185.42,185.31,7.67497384]
[1722123767631,16.4392,185.39,185.27,8.10633648]
[1722123767939,16.4392,185.39,185.26,8.10633648]
[1722123767940,6.4396,185.37,185.26,8.10633648]
[1722123768230,1.34895687,185.36,185.25,56.54320011]
[1722123768531,1.34894924,185.35,185.25,48.43686363]
[1722123769345,1.3489488,185.36,185.26,45.34]
[1722123769516,1.34894893,185.35,185.27,20.0]
[1722123769835,1.34894893,185.35,185.28,45.34]
[1722123770040,1.34894893,185.35,185.29,20.0]
[1722123770531,1.34902036,185.36,185.29,20.0]
[1722123770734,1.34900609,185.35,185.28,0.17]
[1722123770945,1.34900609,185.35,185.27,45.34]
[1722123771238,1.34900609,185.35,185.28,20.0]
[1722123771613,6.4396,185.37,185.28,20.0]
[1722123771813,6.4396,185.37,185.29,45.34]
[1722123772011,6.4396,185.37,185.3,20.0]
[1722123774147,16.4392,185.39,185.3,20.50391699]
[1722123774330,16.4392,185.39,185.31,45.34]
[1722123774943,1.34871251,185.38,185.31,45.34]
[1722123776035,16.4392,185.39,185.31,45.34]
[1722123776936,16.4392,185.39,185.32,20.0]
[1722123777138,16.4392,185.39,185.33,0.17]
[1722123780219,1.34868992,185.38,185.32,20.0]
[1722123783626,1.34868992,185.38,185.27,25.47]
[1722123783829,1.34868992,185.38,185.25,2.13025068]
[1722123784127,1.34892635,185.37,185.25,5.58109177]
[1722123784323,16.4392,185.39,185.27,25.47]
[1722123784528,16.4392,185.39,185.28,0.50376533]
[1722123785039,16.4392,185.39,185.29,0.34]
[1722123785238,16.4392,185.39,185.3,0.50357739]
[1722123785455,16.4392,185.39,185.31,0.34]
[1722123785750,16.4392,185.39,185.31,65.34]
[1722123786755,1.34863836,185.38,185.31,65.34]
[1722123787145,16.4392,185.39,185.31,65.34]
[1722123788237,16.4392,185.39,185.31,20.17]
[1722123788238,1.34864972,185.38,185.31,20.17]
[1722123788443,1.34864972,185.38,185.31,0.17]
[1722123791553,6.4233,185.37,185.28,20.0]
[1722123791735,6.4233,185.37,185.25,39.15934964]
[1722123791736,6.4233,185.37,185.25,31.05109177]
[1722123792937,1.34904293,185.36,185.25,31.05109177]
[1722123793151,1.34904293,185.36,185.26,20.0]
[1722123793448,1.3491316,185.35,185.26,20.0]
[1722123793753,6.4233,185.33,185.21,8.10956751]
[1722123793938,1.34925677,185.32,185.21,14.53286751]
[1722123794137,1.34925677,185.32,185.21,20.11562771]
[1722123794842,1.34925677,185.32,185.22,45.0]
[1722123795042,1.34925677,185.32,185.23,20.0]
[1722123795254,1.34925677,185.32,185.24,45.34]
[1722123795432,1.34925677,185.32,185.25,20.0]
[1722123796235,1.34925677,185.32,185.24,0.17]
[1722123796432,1.34925677,185.32,185.23,45.34]
[1722123796654,1.34925677,185.32,185.24,20.0]
[1722123799862,16.578,185.31,185.22,20.0]
[1722123800072,1.34944252,185.3,185.22,20.0]
[1722123800248,1.34944436,185.29,185.21,0.34]
[1722123800432,1.34944436,185.29,185.22,0.34]
[1722123800638,1.34944436,185.29,185.2,45.34]
[1722123800857,1.34944436,185.29,185.21,45.0]
[1722123801060,1.34944436,185.29,185.22,0.34]
[1722123801242,1.34943844,185.3,185.2,0.34]
[1722123801441,1.34943843,185.29,185.2,0.34]
[1722123801750,1.34943843,185.29,185.2,20.34]
[1722123801949,1.34943843,185.29,185.21,45.0]
[1722123802161,1.34943843,185.29,185.22,20.34]
[1722123802344,1.34943843,185.29,185.22,20.0]
[1722123802841,1.34948157,185.28,185.22,20.0]
[1722123803056,1.34946718,185.3,185.22,20.0]
[1722123803256,1.34946721,185.29,185.22,20.0]
[1722123804350,1.34946722,185.28,185.22,20.0]
[1722123804650,1.34946746,185.3,185.22,20.0]
[1722123804856,16.578,185.31,185.22,20.0]
[1722123804857,1.34946761,185.29,185.22,20.0]
[1722123805642,16.578,185.31,185.22,20.0]
[1722123805969,16.578,185.31,185.23,45.34]
[1722123806852,16.578,185.31,185.24,20.0]
[1722123807051,16.578,185.31,185.25,45.34]
[1722123807247,16.578,185.31,185.26,20.0]
[1722123808765,16.578,185.31,185.27,0.34]
[1722123810540,16.578,185.31,185.26,20.0]
[1722123810744,1.34932559,185.3,185.22,20.0]
[1722123810945,1.34932559,185.3,185.23,45.34]
[1722123811252,1.34932559,185.3,185.24,20.0]
[1722123811446,16.578,185.31,185.24,20.0]
[1722123811863,16.578,185.31,185.25,45.34]
[1722123812158,1.34920189,185.3,185.26,20.0]
[1722123812363,1.34920189,185.3,185.24,20.0]
[1722123812764,1.34920189,185.3,185.23,0.34]
[1722123813070,1.34920189,185.3,185.23,45.34]
[1722123813367,1.34920189,185.3,185.24,20.0]
[1722123813752,16.578,185.31,185.24,20.0]
[1722123814453,1.34927247,185.3,185.24,20.0]
[1722123814659,16.578,185.31,185.24,20.0]
[1722123814856,1.3492782,185.3,185.24,20.0]
[1722123819548,16.578,185.31,185.23,45.34]
[1722123819786,1.34941001,185.3,185.2,5.57975531]
[1722123819979,1.34947035,185.29,185.21,45.34]
[1722123820283,16.578,185.31,185.21,45.34]
[1722123820454,16.578,185.31,185.21,70.81]
[1722123820856,1.34931595,185.3,185.22,20.0]
[1722123821153,1.34931595,185.3,185.23,45.34]
[1722123822465,16.578,185.31,185.23,45.34]
[1722123822855,1.34931698,185.3,185.23,45.34]
[1722123825464,1.34931698,185.3,185.22,20.0]
[1722123825659,1.34952863,185.29,185.22,20.0]
[1722123825860,1.34952863,185.29,185.2,20.0]
[1722123826080,20.8951,185.31,185.2,20.0]
[1722123826385,1.34952725,185.3,185.2,20.0]
[1722123826583,1.34952725,185.3,185.19,22.15367169]
[1722123826758,1.34952725,185.3,185.19,20.0]
[1722123826965,1.34952725,185.3,185.2,45.34]
[1722123827185,1.34952725,185.3,185.21,20.0]
[1722123827374,1.34952739,185.29,185.21,20.0]
[1722123828592,16.578,185.31,185.21,20.0]
[1722123828885,16.578,185.31,185.22,45.34]
[1722123829088,4.3177,185.29,185.21,0.50555008]
[1722123829378,26.9895,185.28,185.16,8.1115571]
[1722123829579,1.34976132,185.27,185.15,8.1115571]
[1722123829781,1.34976152,185.26,185.15,8.1115571]
[1722123830283,1.34976152,185.26,185.14,13.68737816]
[1722123830474,1.34976152,185.26,185.15,20.0]
[1722123830675,1.34976152,185.26,185.16,45.0]
[1722123830979,1.34976152,185.26,185.17,20.0]
[1722123832292,1.34976152,185.26,185.18,0.17]
[1722123834076,1.34975685,185.25,185.18,0.17]
[1722123834397,1.34975685,185.25,185.17,0.34]
[1722123835269,1.34977955,185.27,185.17,0.34]
[1722123835503,1.34977954,185.26,185.17,20.34]
[1722123835866,1.34977954,185.26,185.17,20.0]
[1722123836693,26.7041,185.25,185.14,15.8037386]
[1722123836876,5.66881166,185.24,185.14,8.11350144]
[1722123837077,1.35011126,185.23,185.13,0.7930659]
[1722123837396,15.9899,185.21,185.13,0.7930659]
[1722123837572,1.35018822,185.2,185.13,0.7930659]
[1722123838701,6.3957,185.19,185.13,0.7930659]
[1722123838994,1.35018723,185.18,185.13,0.7930659]
[1722123840574,6.3957,185.19,185.13,0.7930659]
[1722123841285,1.35018648,185.18,185.13,0.7930659]
[1722123841508,1.3503486,185.17,185.13,0.7930659]
[1722123842185,1.35031369,185.16,185.13,0.7930659]
[1722123842569,6.3957,185.19,185.13,0.7930659]
[1722123842772,1.35039608,185.18,185.13,0.7930659]
[1722123843173,6.3957,185.19,185.13,0.7930659]
[1722123845698,6.3957,185.19,185.13,20.7930659]
[1722123846199,6.3957,185.19,185.14,0.50693205]
[1722123847798,6.3957,185.19,185.14,20.0]
[1722123848189,6.3957,185.19,185.13,0.7930659]
[1722123848386,6.3957,185.19,185.13,1.2998838]
[1722123848586,6.3957,185.19,185.13,21.2998838]
[1722123848780,15.9899,185.21,185.13,21.2998838]
[1722123848981,15.9899,185.21,185.14,0.17]
[1722123849699,15.9899,185.21,185.14,45.34]
[1722123849903,15.9899,185.21,185.15,20.0]
[1722123850694,15.9899,185.21,185.14,45.34]
[1722123851095,15.9899,185.21,185.15,20.0]
[1722123852382,1.34997298,185.2,185.15,20.0]
[1722123852586,1.34997298,185.2,185.14,0.17]
[1722123852587,15.9899,185.21,185.14,20.0]
[1722123852886,15.9899,185.21,185.13,0.7930659]
[1722123853297,15.9899,185.21,185.13,20.7930659]
[1722123853488,1.35010308,185.2,185.13,20.7930659]
[1722123854713,15.9899,185.21,185.13,20.7930659]
[1722123854903,15.9899,185.21,185.14,0.17]
[1722123855803,15.9899,185.21,185.14,45.17]
[1722123856010,15.9899,185.21,185.15,20.0]
[1722123862008,15.9899,185.21,185.16,0.17]
[1722123862713,15.9899,185.21,185.16,45.34]
[1722123863316,15.9899,185.21,185.16,44.84]
[1722123871815,15.9899,185.21,185.17,20.0]
[1722123874102,15.9899,185.21,185.17,20.50621408]
[1722123874624,15.9899,185.21,185.17,20.0]
[1722123875505,15.9899,185.21,185.18,0.50621483]
[1722123876401,15.9899,185.21,185.17,20.0]
[1722123878128,6.3957,185.23,185.17,20.0]
[1722123878425,16.1408,185.26,185.18,0.50618184]
[1722123878604,16.1408,185.26,185.18,45.50618184]
[1722123878804,16.1408,185.26,185.19,20.50592373]
[1722123879005,16.1408,185.26,185.19,20.0]
[1722123883325,16.1408,185.26,185.18,45.50573719]
[1722123883531,16.1408,185.26,185.19,20.34]
[1722123883906,17.49040662,185.26,185.19,20.0]
[1722123884115,17.49040662,185.26,185.16,20.0]
[1722123884428,17.49040662,185.26,185.14,20.0]
[1722123885334,17.49040662,185.26,185.15,45.34]
[1722123885514,17.49040662,185.26,185.16,20.0]
[1722123885712,17.49040662,185.26,185.17,45.0]
[1722123885914,17.49040662,185.26,185.18,20.0]
[1722123887538,16.1408,185.26,185.18,20.0]
[1722123889118,1.34970162,185.25,185.18,20.0]
[1722123892033,16.1408,185.26,185.18,20.0]
[1722123892738,1.34969964,185.25,185.18,20.0]
[1722123896339,16.1408,185.26,185.18,20.0]
[1722123900436,16.1408,185.26,185.19,0.34]
[1722123900644,16.1408,185.26,185.19,45.34]
[1722123900821,16.1408,185.26,185.2,20.50555235]
[1722123901021,16.1408,185.26,185.21,45.34]
[1722123901227,16.1408,185.26,185.22,20.0]
[1722123901535,16.1408,185.26,185.23,45.17]
[1722123901738,15.6907,185.31,185.23,45.17]
[1722123904822,15.6907,185.31,185.24,20.50498121]
[1722123905139,15.6907,185.31,185.24,20.67498121]
[1722123905343,15.6907,185.36,185.25,45.67466201]
[1722123905547,15.6907,185.36,185.27,25.47]
[1722123905844,15.6907,185.36,185.28,65.0]
[1722123906048,15.6907,185.36,185.28,65.34]
[1722123910944,15.6907,185.41,185.29,0.50371019]
[1722123911150,15.6907,185.41,185.3,26.31350762]
[1722123911323,15.6907,185.41,185.31,65.0]
[1722123911521,15.6907,185.41,185.31,65.34]
[1722123912547,15.6907,185.41,185.32,0.50323565]
[1722123912748,15.6907,185.41,185.33,0.34]
[1722123913738,15.6907,185.41,185.33,0.50320388]
[1722123914054,22.4764,185.46,185.34,0.34]
[1722123914248,22.4764,185.46,185.34,0.84251422]
[1722123914459,1.34826186,185.45,185.34,0.84251422]
[1722123914825,1.34826186,185.45,185.34,0.34]
[1722123915225,22.4764,185.46,185.35,20.50251436]
[1722123915443,1.3481832,185.45,185.36,65.34]
[1722123915644,1.3481832,185.45,185.36,20.34]
[1722123915827,1.3481832,185.45,185.37,45.0]
[1722123916030,1.3481832,185.45,185.38,0.34]
[1722123916934,1.3481832,185.45,185.33,20.0]
[1722123917143,1.3481832,185.45,185.31,16.665]
[1722123917144,1.3481832,185.45,185.34,45.34]
[1722123917340,1.3481832,185.45,185.35,65.0]
[1722123917542,1.3481832,185.45,185.35,20.0]
[1722123917753,4.3143,185.43,185.32,20.0]
[1722123917963,1.34868397,185.45,185.29,20.0]
[1722123918144,1.34868397,185.45,185.3,0.50329477]
[1722123918347,28.13858812,185.46,185.31,25.47]
[1722123918567,4.3139,185.45,185.32,20.50319404]
[1722123918858,23.82498812,185.46,185.33,45.0]
[1722123918859,28.13858812,185.46,185.33,45.0]
[1722123919065,28.13858812,185.46,185.34,20.0]
[1722123919240,28.13858812,185.46,185.35,45.17]
[1722123919441,22.4764,185.46,185.35,45.17]
[1722123919747,22.4764,185.46,185.36,20.0]
[1722123920138,1.34836152,185.45,185.37,45.34]
[1722123920460,1.34836152,185.45,185.37,45.0]
[1722123925156,22.4764,185.46,185.37,45.0]
[1722123925344,1.34833608,185.45,185.37,45.0]
[1722123925665,5.66223608,185.45,185.36,20.0]
[1722123925845,5.66223608,185.45,185.33,20.0]
[1722123926855,5.66223608,185.45,185.34,45.0]
[1722123927063,5.66223608,185.45,185.35,20.0]
[1722123928369,1.34833608,185.45,185.35,20.0]
[1722123929047,26.79,185.46,185.35,20.0]
[1722123929570,1.34846557,185.45,185.35,20.0]
[1722123929776,22.4764,185.46,185.36,45.34]
[1722123929956,22.4764,185.46,185.37,20.0]
[1722123930761,22.4764,185.46,185.38,45.17]
[1722123934760,1.34826845,185.45,185.38,45.17]
[1722123937259,22.4764,185.46,185.38,45.17]
[1722123938171,5.66206756,185.45,185.37,20.0]
[1722123938391,5.66206756,185.45,185.34,20.0]
[1722123938676,5.66206756,185.45,185.32,17.29302529]
[1722123938677,4.314,185.44,185.33,20.0]
[1722123938975,1.34846634,185.43,185.31,20.0]
[1722123939273,1.34846648,185.42,185.31,20.0]
[1722123939476,1.34846648,185.42,185.3,25.47]
[1722123940158,4.3143,185.43,185.3,25.47]
[1722123940974,4.3143,185.43,185.31,20.0]
[1722123941175,4.3143,185.43,185.32,45.34]
[1722123941374,4.3143,185.43,185.33,20.0]
[1722123942853,1.3486673,185.45,185.33,20.0]
[1722123943056,23.8249485,185.46,185.34,45.0]
[1722123943290,23.8249485,185.46,185.35,20.0]
[1722123943877,23.8249485,185.46,185.35,21.07885051]
[1722123944077,4.314,185.44,185.35,20.0]
[1722123944752,4.3138,185.45,185.35,20.0]
[1722123945960,4.3138,185.45,185.35,21.07884985]
[1722123946266,4.3138,185.45,185.36,1.07884969]
[1722123948081,4.3141,185.44,185.36,1.07884969]
[1722123948468,4.3141,185.44,185.35,20.0]
[1722123948674,5.66262886,185.44,185.35,20.0]
[1722123948861,4.3141,185.44,185.35,20.0]
[1722123949362,5.66262486,185.44,185.35,20.0]
[1722123950058,4.3138,185.45,185.35,20.0]
[1722123950389,4.3138,185.45,185.36,1.07881828]
[1722123950551,4.3138,185.45,185.35,20.0]
[1722123950552,1.34850959,185.45,185.35,20.0]
[1722123950758,1.34831161,185.45,185.36,45.34]
[1722123951194,22.4764,185.46,185.37,20.0]
[1722123952483,22.4764,185.46,185.38,45.17]
[1722123954065,22.4764,185.46,185.39,1.07860799]
[1722123954254,22.4764,185.46,185.4,1.07860909]
[1722123955167,22.4764,185.46,185.4,45.0]
[1722123957887,16.2225,185.46,185.41,1.07845046]
[1722123958192,16.2225,185.46,185.4,45.0]
[1722123958998,22.5285,185.5,185.4,45.0]
[1722123960187,26.8412,185.5,185.4,45.0]
[1722123960372,4.3135,185.47,185.4,45.0]
[1722123960571,23.87662265,185.5,185.4,45.0]
[1722123960791,4.3131,185.49,185.4,45.0]
[1722123961474,4.3131,185.48,185.4,45.0]
[1722123961674,4.3134,185.47,185.39,20.0]
[1722123961987,4.3134,185.47,185.38,0.17]
[1722123962183,5.66187505,185.46,185.38,0.17]
[1722123962394,1.3482814,185.45,185.34,20.0]
[1722123962692,15.8626,185.44,185.34,20.0]
[1722123962874,1.34842032,185.43,185.34,20.0]
[1722123963190,1.34843082,185.42,185.34,20.0]
[1722123963367,1.34843082,185.42,185.35,45.0]
[1722123963682,1.34843082,185.42,185.36,20.0]
[1722123964199,1.34845742,185.41,185.33,2.11481032]
[1722123964369,1.34845742,185.41,185.3,5.62417526]
[1722123965663,1.34845742,185.41,185.31,45.34]
[1722123966081,1.34864058,185.43,185.31,45.34]
[1722123966287,1.34864076,185.42,185.31,45.34]
[1722123966791,1.34864076,185.42,185.32,20.0]
[1722123970302,15.8626,185.44,185.33,45.0]
[1722123970669,1.34855649,185.43,185.33,45.0]
[1722123970886,1.34855835,185.42,185.33,45.0]
[1722123972670,1.34855835,185.42,185.32,20.0]
[1722123972892,1.34855835,185.42,185.31,20.34]
[1722123973099,15.8626,185.44,185.32,45.0]
[1722123973282,15.8626,185.44,185.33,20.34]
[1722123974285,1.34856142,185.43,185.33,20.34]
[1722123976292,15.8626,185.44,185.33,20.34]
[1722123976496,17.21115957,185.44,185.33,20.34]
[1722123976794,15.8626,185.44,185.33,20.34]
[1722123978103,20.1767,185.44,185.33,20.34]
[1722123978699,1.34855872,185.43,185.33,20.34]
[1722123978995,20.1767,185.44,185.33,20.34]
[1722123988100,1.34855537,185.43,185.33,20.34]
[1722123988289,1.34855522,185.42,185.33,20.34]
[1722123996113,20.1767,185.44,185.33,20.34]
[1722123996823,1.34855164,185.43,185.33,20.34]
[1722123997033,1.3485515,185.42,185.33,20.34]
[1722123999625,20.1767,185.44,185.33,20.34]
[1722123999825,20.1767,185.44,185.34,45.0]
[1722124000125,15.8626,185.44,185.35,1.07883332]
[1722124000305,15.8626,185.44,185.36,0.34]
[1722124000629,15.8626,185.44,185.36,46.418659]
[1722124000811,15.8626,185.44,185.36,45.34]
[1722124001702,15.8626,185.44,185.36,46.41864145]
[1722124001902,15.8626,185.44,185.37,20.0]
[1722124002232,15.8626,185.44,185.38,46.41852095]
[1722124002448,6.5352,185.49,185.39,20.0]
[1722124002730,21.7317,185.49,185.39,20.0]
[1722124002939,21.7317,185.49,185.4,45.34]
[1722124003409,21.7317,185.49,185.41,20.0]
[1722124003731,21.7317,185.49,185.42,45.17]
[1722124004038,1.34795061,185.48,185.42,45.17]
[1722124004911,21.7317,185.49,185.42,45.17]
[1722124006808,21.7317,185.49,185.43,20.0]
[1722124008339,15.1965,185.49,185.43,20.0]
[1722124011309,15.1965,185.49,185.43,21.07828228]
[1722124012216,15.1965,185.49,185.43,20.0]
[1722124012530,21.7317,185.53,185.43,20.0]
[1722124012739,23.07952367,185.53,185.43,20.0]
[1722124013039,27.39152367,185.53,185.43,20.0]
[1722124017819,1.34787536,185.52,185.43,20.0]
[1722124018731,21.7317,185.53,185.43,20.0]
[1722124018946,21.7317,185.53,185.44,45.0]
[1722124019236,21.7317,185.53,185.45,1.07824452]
[1722124019432,21.7317,185.53,185.46,1.07824458]
[1722124020526,15.1965,185.53,185.44,45.0]
[1722124020837,20.5178,185.57,185.45,21.41813014]
[1722124021045,20.5178,185.57,185.46,45.0]
[1722124021216,1.34764598,185.56,185.46,45.0]
[1722124023424,17.55434494,185.57,185.47,0.34]
[1722124023618,16.2067,185.57,185.47,0.34]
[1722124023819,16.2067,185.57,185.47,20.34]
[1722124024019,16.2067,185.57,185.48,45.0]
[1722124024623,4.3107,185.59,185.48,45.0]
[1722124025438,1.34746825,185.58,185.47,35.0417]
[1722124025744,4.3113,185.56,185.47,35.0417]
[1722124026347,0.34,185.6,185.47,35.0417]
[1722124026348,4.311,185.58,185.47,35.0417]
[1722124026525,1.34763491,185.57,185.47,35.0417]
[1722124026723,1.34753175,185.58,185.48,45.17]
[1722124026939,1.34750445,185.57,185.48,45.17]
[1722124027453,1.34752937,185.57,185.47,35.0417]
[1722124027839,5.65852937,185.57,185.47,35.0417]
[1722124029644,4.3115,185.55,185.47,35.0417]
[1722124029855,1.34768562,185.54,185.47,35.0417]
[1722124030957,5.65896422,185.56,185.47,20.0]
[1722124031140,4.3115,185.55,185.42,21.707]
[1722124031459,1.347854,185.54,185.43,45.34]
[1722124032450,1.347854,185.54,185.42,21.707]
[1722124032650,50.659754,185.54,185.42,21.707]
[1722124032959,4.3119,185.53,185.42,21.707]
[1722124033134,1.34801849,185.52,185.42,21.707]
[1722124033336,1.34801688,185.51,185.42,21.707]
[1722124033734,1.34801688,185.51,185.43,20.0]
[1722124033957,1.34786989,185.54,185.43,20.0]
[1722124036039,4.3119,185.53,185.43,20.0]
[1722124036366,1.34801401,185.52,185.43,20.0]
[1722124036734,1.34801344,185.53,185.43,20.0]
[1722124037061,1.34798976,185.54,185.43,20.0]
[1722124038834,16.2067,185.55,185.44,45.34]
[1722124039446,1.34771957,185.54,185.44,45.34]
[1722124039848,1.34771957,185.54,185.44,45.17]
[1722124040532,4.3114,185.56,185.44,45.17]
[1722124040735,4.3114,185.56,185.43,20.0]
[1722124040736,1.34780928,185.55,185.43,20.0]
[1722124040938,1.34780884,185.54,185.43,20.0]
[1722124041871,4.3121,185.53,185.43,20.0]
[1722124042178,1.34801307,185.52,185.43,20.0]
[1722124042474,1.34801281,185.51,185.43,20.0]
[1722124042838,5.66041281,185.51,185.43,20.0]
[1722124043057,1.34801281,185.51,185.37,22.8396]
[1722124043379,4.3131,185.48,185.37,22.8396]
[1722124043662,1.34836173,185.47,185.37,22.8396]
[1722124044800,4.6529,185.5,185.38,20.0]
[1722124044801,0.34,185.5,185.38,20.0]
[1722124044978,1.34835913,185.49,185.38,20.0]
[1722124045294,1.34836078,185.48,185.38,20.0]
[1722124051983,1.34836078,185.48,185.37,16.1959]
[1722124052299,1.34836078,185.48,185.33,7.72238713]
[1722124052300,20.2151,185.47,185.33,6.6437]
[1722124052539,20.2151,185.47,185.34,65.17]
[1722124052705,20.2151,185.47,185.34,45.17]
[1722124054393,20.2151,185.47,185.35,20.0]
[1722124055292,15.9017,185.47,185.35,20.0]
[1722124055460,6.3401,185.45,185.32,5.60265177]
[1722124055660,4.3145,185.42,185.31,2.10134626]
[1722124055863,5.66362123,185.41,185.28,22.5111]
[1722124056068,4.3156,185.38,185.29,5.5928588]
[1722124056377,1.34906103,185.37,185.24,6.3908]
[1722124058083,15.1605,185.36,185.24,6.3908]
[1722124058262,1.34921596,185.35,185.24,6.3908]